Cogmind - Beta 16.1 @@@ ROGUE MODE // 2026.04.03 @ 16:31:37 Player: SunShine214 Result: Destroyed by Y-45 Defender with Heavy Assault Rifle Performance ------------- Evolutions (0) 0 Regions Visited (3) 600 Robots Destroyed (33) 165 Value Destroyed (643) 643 Prototype IDs (14) 280 Alien Tech Used (0) 0 Bonus (0) 0 TOTAL SCORE: 1688 Bonus ------- None Cogmind --------- Core Integrity 0/250 Matter 290/300 Energy 88/100 System Corruption 0% Temperature Cool (0) Movement Treading (160) Location -8/Recycling Parts ------- > --- POWER (1+1) ------ (None) > --- PROPULSION (2+1) - Light Treads Light Treads (+) Combat Airjet > --- UTILITY (2+1) ---- Rainbow Chip > --- WEAPON (2) ------- Hammer > --- INVENTORY (5) ---- 1B-0RG's Assimilator Peak State ------------ > --- POWER ------------ (None) > --- PROPULSION ------- Flight Unit Flight Unit > --- UTILITY ---------- Hacking Suite Rainbow Chip > --- WEAPON ----------- Improved Assault Rifle Multitool Hammer > --- INVENTORY -------- 1B-0RG's Assimilator [Rating: 30] Favorites ----------- Power Light Ion Engine Engine Light Ion Engine Propulsion Light Treads Treads Light Treads Hover Unit Combat Airjet Flight Unit Flight Unit Utility Improved Terrain Scanner Device Improved Terrain Scanner Storage Small Storage Unit Processor Rainbow Chip Hackware Hacking Suite Weapon Particle Cannon Energy Gun EM Pulse Gun Energy Cannon Particle Cannon Ballistic Gun Improved Assault Rifle Launcher Grenade Launcher Special Weapon Multitool Impact Weapon Hammer Build | -11 -10 -10 -8 ------- Run | Yrd Mat Sub Rec Slots Evolved . | . . . . Power . | . . . . Propulsion . | . . . . Utility . | . . . . Weapon . | . . . . Parts Attached 26 | 8 8 7 3 Power 3 | 1 2 . . Engine 3 | 1 2 . . Core . | . . . . Reactor . | . . . . Propulsion 8 | 2 1 2 3 Treads 5 | 2 1 . 2 Leg . | . . . . Wheel . | . . . . Hover 1 | . . . 1 Flight 2 | . . 2 . Utility 6 | 3 1 2 . Device 2 | 2 . . . Storage 2 | 1 1 . . Processor 1 | . . 1 . Hackware 1 | . . 1 . Protection . | . . . . Artifact . | . . . . Weapon 9 | 2 4 3 . Energy Gun 2 | 2 . . . Energy Cannon 2 | . 2 . . Ballistic Gun 2 | . 2 . . Ballistic Cannon . | . . . . Launcher 1 | . . 1 . Special Weapon 1 | . . 1 . Impact Weapon 1 | . . 1 . Slashing Weapon . | . . . . Piercing Weapon . | . . . . Special Melee Weapon . | . . . . Unidentified Prototypes 1 | . 1 . . Parts Lost 6 | . 1 1 4 Power . | . . . . Propulsion 2 | . . . 2 Utility 2 | . 1 1 . Weapon 2 | . . . 2 Highest Loss Streak 5 | . 1 1 5 To Critical Strikes . | . . . . Average Backups 6 | . 8 4 1 Power . | . . . . Propulsion 1 | . 2 . . Utility . | . . . . Weapon 4 | . 5 2 . Tool/Special . | . . . . Unused Backups 10 | 1 4 4 1 Power . | . . . . Propulsion 2 | . 2 . . Utility . | . . . . Weapon 7 | 1 2 4 . Tool/Special 1 | . . . 1 Average Slot Usage (%) 88 | . 96 59 44 Engine 10 | . 14 . . Treads 22 | . 28 1 4 Flight 5 | . . 26 9 Device 8 | . 11 . . Storage 10 | . 14 . . Energy Gun 1 | . 1 . . Energy Cannon 16 | . 20 1 . Ballistic Gun 4 | . 5 1 5 Launcher 2 | . . 11 . Impact Weapon 2 | . . 13 9 Peak Build Rating 30 | 9 14 30 27 Average Rating 10 | 6 12 7 25 On Entrance 11 | . 9 10 27 Avg Prop Armor Cover (%) . | . . . . Naked Turns . | . . . . Heaviest Build 26 | 13 26 25 7 Greatest Support 40 | 40 40 40 40 Greatest Overweight (x) 1 | . . . 1 Average Overweight (x) . | . . . . Largest Inventory Capacity 10 | 8 10 10 5 Average Capacity 7 | 7 8 5 5 Most Carried 10 | 3 10 10 5 Average Carried 7 | . 8 5 5 Final Capacity 10 | 8 10 5 5 Final Carried 10 | 1 10 5 5 Class Distribution -------------------- 100% | Mutant Dominant Class ---------------- Mutant | -10/Materials Mutant | -10/Subcaves Mutant | -8/Recycling Resources | -11 -10 -10 -8 ----------- Run | Yrd Mat Sub Rec Matter Collected 593 | 263 235 57 38 Remotely . | . . . . Salvage Created 849 | 129 618 72 30 Parts 60 | 15 35 8 2 Haulers Intercepted . | . . . . Recyclers Shooed . | . . . . Parts Field Recycled . | . . . . Retrieved Matter . | . . . . Parts Self-Destructed 4 | . . 4 . Prevented . | . . . . Parts Restored . | . . . . Kills | -11 -10 -10 -8 ------- Run | Yrd Mat Sub Rec Combat Hostiles Destroyed 21 | . 16 4 1 Melee 2 | . . 1 1 Guns 8 | . 8 . . Cannons 8 | . 8 . . AOE 3 | . . 3 . Classes Destroyed 10 | 3 5 1 1 Worker 4 | 1 3 . . Builder 1 | . 1 . . Tunneler 3 | 3 . . . Recycler 1 | 1 . . . Operator 2 | . 2 . . Watcher 1 | . 1 . . Swarmer 9 | . 6 3 . Grunt 10 | . 10 . . Demolisher 1 | . . . 1 Subdweller 1 | . . 1 . Best Kill Streak 5 | 2 5 3 1 Combat Bots Only 3 | . 3 3 1 Max Kills in Single Turn 2 | 1 2 2 1 Gunslinging . | . . . . Exploded 2 | . . 2 . Melee 1 | . . 1 1 Uniques/NPCs Destroyed . | . . . . Combat | -11 -10 -10 -8 -------- Run | Yrd Mat Sub Rec Hostile Shots Fired 140 | . 56 46 38 Missed 56 | . 19 25 12 Hits 84 | . 37 21 26 Projectile 84 | . 37 21 26 AOE 2 | . . . 2 Critical Strikes 2 | . . . 2 Damage Taken 1021 | . 373 205 443 Core 253 | . 81 50 122 Absorbed by Shields . | . . . . Core Remaining (%) 100 | 100 . . . Volleys Fired 65 | 17 46 2 . Largest 2 | 2 2 1 . Hottest 136 | 90 136 30 . Shots Fired 127 | 34 91 2 . Gun 80 | 34 46 . . Cannon 45 | . 45 . . Launcher 2 | . . 2 . Special . | . . . . Kinetic 46 | . 46 . . Thermal 62 | 17 45 . . Explosive 2 | . . 2 . Electromagnetic 17 | 17 . . . Robot Hit Streak 8 | 4 8 3 . Robot Miss Streak 5 | 2 5 . . Penetration Max . | . . . . Secondary Targets 2 | . 2 . . Max Gunslinging Chain 1 | . 1 . . Shots Hit Robots 87 | 21 53 6 7 Core Hits 36 | 6 25 4 1 Critical Kills . | . . . . Critical Parts Destroyed 4 | . 1 1 2 Critical Strikes 4 | . 1 1 2 Destroy 1 | . 1 . . Smash 3 | . . 1 2 Melee Attacks 17 | . . 10 7 Impact 17 | . . 10 7 Slashing . | . . . . Piercing . | . . . . Sneak Attacks 1 | . . . 1 Combat Hostiles . | . . . . Follow-up Attacks . | . . . . Damage Inflicted 1747 | 319 1086 206 136 Guns 731 | 275 456 . . Cannons 595 | . 595 . . Explosions 137 | 44 . 93 . Melee 249 | . . 113 136 Ramming 35 | . 35 . . Kinetic 456 | . 456 . . Thermal 752 | 157 595 . . Explosive 93 | . . 93 . Electromagnetic 162 | 162 . . . Impact 249 | . . 113 136 Slashing . | . . . . Piercing . | . . . . Highest Corruption . | . . . . Average Corruption . | . . . . Corruption Purged . | . . . . Corruption Blocked . | . . . . Overload Shots . | . . . . Overflow Damage 109 | 12 22 35 40 Projectiles 22 | . 22 . . Explosions 12 | 12 . . . Melee 75 | . . 35 40 Knockbacks . | . . . . Impact . | . . . . Kinetic . | . . . . Secondary . | . . . . Self-Inflicted Damage . | . . . . Shots . | . . . . Rammed 4 | . 4 . . Targets Rammed 5 | . 5 . . Kicked . | . . . . Crushed 1 | . 1 . . Highest Temperature 394 | 300 394 . 3 Average Temperature 134 | 109 146 . 2 Received Heat Transfer 333 | . 123 66 144 Effects 5 | 1 4 . . Shutdowns 2 | . 2 . . Interference 2 | . 2 . . Short Circuit 1 | 1 . . . Siege Activations . | . . . . Martial Activations . | . . . . Shielding Activations . | . . . . Robots Disrupted . | . . . . Combat Hostiles . | . . . . Robots Corrupted . | . . . . Combat Hostiles . | . . . . Parts Fried . | . . . . Impact Corruptions 3 | . . 1 2 Robots Melted . | . . . . Combat Hostiles . | . . . . Parts Melted 1 | . 1 . . Heat Transferred 1506 | 433 1073 . . Parts Sabotaged . | . . . . Parts Stolen . | . . . . Parts Stripped . | . . . . Power Chain Reactions 1 | 1 . . . Alert | -11 -10 -10 -8 ------- Run | Yrd Mat Sub Rec Maximum Alert Level . | . . . . Low Security (%) 100 | 100 100 . 100 Level 1 . | . . . . Level 2 . | . . . . Level 3 . | . . . . Level 4 . | . . . . Level 5 . | . . . . High Security . | . . . . Max Security . | . . . . Peak Influence 126 | 10 126 . 20 Initial 12 | . . . 12 Average 34 | 1 39 . 13 Influence Increases 660 | 25 440 175 20 Destroy 0b10 Robot/C 400 | . 320 60 20 Destroy 0b10 Robot/NC 60 | 25 35 . . Destroy Leader 72 | . 62 10 . Successful Hack 7 | . 7 . . Disable Machine 15 | . 15 . . Destroy Structure 1 | . 1 . . Lose Combat Pursuer 105 | . . 105 . Influence Decreases 640 | 25 351 237 27 Entered New Map 59 | . . 44 15 Time Decay 549 | 25 341 183 . Lost Part 32 | . 10 10 12 Squads Dispatched 2 | . 2 . . Investigation . | . . . . Extermination . | . . . . Reinforcement 2 | . 2 . . Assault . | . . . . Garrison . | . . . . Intercept . | . . . . Searches Triggered . | . . . . Construction Impeded . | . . . . Haulers Reinforced . | . . . . Active Scanning Responses . | . . . . Cargo Convoy Interrupts . | . . . . Stealth | -11 -10 -10 -8 --------- Run | Yrd Mat Sub Rec Distress Signals 1 | . 1 . . Communications Jammed . | . . . . Distress Signals . | . . . . Times Spotted 43 | . 22 16 5 Peak Tracking Total 6 | . 3 6 5 Tactical Retreats 1 | . . 1 . Traps | -11 -10 -10 -8 ------- Run | Yrd Mat Sub Rec Traps Triggered 1 | . . 1 . Indirectly . | . . . . Trap Hack Attempts . | . . . . Triggered . | . . . . Disarmed . | . . . . Reprogrammed . | . . . . Reused . | . . . . Traps Extracted . | . . . . Installed . | . . . . Triggered . | . . . . Machines | -11 -10 -10 -8 ---------- Run | Yrd Mat Sub Rec Machines Disabled 2 | . 1 1 . Max in Single Turn 1 | . 1 1 . Machines Repaired . | . . . . Machines Dismantled . | . . . . Machines Sabotaged . | . . . . Overloaded Fab Kills . | . . . . Hacking | -11 -10 -10 -8 --------- Run | Yrd Mat Sub Rec Machines Accessed 6 | . 5 1 . Terminals 5 | . 5 . . Fabricators . | . . . . Repair Stations . | . . . . Recycling Units . | . . . . Scanalyzers . | . . . . Garrison Access . | . . . . Total Hacks 9 | . 8 1 . Successful 2 | . 1 1 . Failed 7 | . 7 . . Catastrophic 2 | . 2 . . Database Lockouts . | . . . . Manual 6 | . 6 . . Terminals 8 | . 8 . . Fabricators . | . . . . Repair Stations . | . . . . Recycling Units . | . . . . Scanalyzers . | . . . . Garrison Access . | . . . . Terminal Hacks 2 | . 1 1 . Part Schematic 1 | . 1 . . Proto ID Catalog 1 | . . 1 . Fabricator Hacks . | . . . . Repair Station Hacks . | . . . . Recycling Unit Hacks . | . . . . Scanalyzer . | . . . . Garrison Access Hacks . | . . . . Unauthorized Hacks . | . . . . Terminals . | . . . . Fabricators . | . . . . Repair Stations . | . . . . Recycling Units . | . . . . Scanalyzers . | . . . . Garrison Access . | . . . . Data Cores Recovered . | . . . . Used . | . . . . Hacking Detections 4 | . 4 . . Full Trace Events . | . . . . Feedback Events . | . . . . Feedback Blocked . | . . . . Robot Schematics Acquired . | . . . . Robots Built . | . . . . Authchips . | . . . . Time . | . . . . Total Robot Build Rating . | . . . . Part Schematics Acquired 1 | . 1 . . Parts Built . | . . . . Authchips . | . . . . Time . | . . . . Total Part Build Rating . | . . . . Part Studies Acquired . | . . . . Parts Repaired . | . . . . Time . | . . . . Parts Recycled . | . . . . Recycled Matter . | . . . . Retrieved Matter . | . . . . Retrieved Components . | . . . . Parts Scanalyzed . | . . . . Part Schematics Acquired . | . . . . Parts Damaged . | . . . . Bothacking | -11 -10 -10 -8 ------------ Run | Yrd Mat Sub Rec Used RIF Installer . | . . . . Robots Hacked . | . . . . Non-combat . | . . . . Combat . | . . . . Robot Hacks Applied . | . . . . Relay Couplers Released . | . . . . Fabnet Peak Effective % . | . . . . Robots Rewired . | . . . . Allies Hacked . | . . . . Hacks Repelled . | . . . . Allies | -11 -10 -10 -8 -------- Run | Yrd Mat Sub Rec Total Allies . | . . . . Largest Group . | . . . . Highest-Rated Group . | . . . . Highest-Rated Ally . | . . . . Total Orders . | . . . . Ally Attacks . | . . . . Total Damage . | . . . . Kills . | . . . . Allies Corrupted . | . . . . Allies Melted . | . . . . Intel | -11 -10 -10 -8 ------- Run | Yrd Mat Sub Rec Active Infowar (turns) 1405 | 95 1310 . . Terrain 1405 | 95 1310 . . Robot Analysis Total . | . . . . Derelict Logs Recovered 1 | . . 1 . Drone Launches . | . . . . Drone Recoveries . | . . . . Exploration | -11 -10 -10 -8 ------------- Run | Yrd Mat Sub Rec Turns Passed 2301 | 195 1652 415 39 Spaces Moved 1598 | 82 872 614 30 Core 2 | 1 . . 1 Treads 958 | 81 872 2 3 Legs . | . . . . Wheels . | . . . . Hover 2 | . . . 2 Flight 636 | . . 612 24 Fastest Speed 37 | 50 160 37 37 Average Speed 110 | 158 160 37 58 Slowest Speed 160 | 160 160 160 160 Overloaded Moves . | . . . . Propulsion Burnouts . | . . . . Robots Hopped . | . . . . Potential Cave-ins . | . . . . Cave-ins Triggered . | . . . . Exploration Rate (%) 34 | 4 90 32 10 Regions Visited 3 Branch Regions 2 Pre-discovered Areas 1 | . . 1 . Known Exits Taken . | . . . . Unknown Exits Taken 3 | 1 1 1 . Scrap Searched . | . . . . Spaces Dug . | . . . . Terrain Destroyed 19 | 3 . 16 . Melee . | . . . . Projectile . | . . . . AOE 19 | 3 . 16 . Terrain Rammed . | . . . . Walls Destroyed . | . . . . Machines Disabled . | . . . . Actions | -11 -10 -10 -8 --------- Run | Yrd Mat Sub Rec Total 1973 | 111 1039 783 40 Wait 212 | . 78 134 . Move 1595 | 81 871 613 30 Hop . | . . . . Pick Up 24 | 2 18 4 . Fast Attach 12 | 8 . 1 3 Attach 6 | . . 6 . Detach 3 | 1 . 2 . Swap 9 | . 8 1 . Drop 25 | 2 13 10 . Fire 65 | 17 46 2 . Melee 17 | . . 10 7 Ram . | . . . . Kick . | . . . . Crush 5 | . 5 . . Escape Stasis . | . . . . Rewire . | . . . . Trap . | . . . . Miscellaneous . | . . . . Route ------- -11/Scrapyard -10/Materials (discovered 5 exits: [*Mat x3] / [*Min] / *Sub) -10/Subcaves (discovered 2 exits: [*Mat] / [*Rec]) -8/Recycling History --------- Turn | Location | Event 5 | -11/Scrapyard | Discovered new exit (range 16) 196 | -11/Scrapyard | Entered Materials 249 | -10/Materials | Discovered new exit (range 11) 310 | -10/Materials | Build established: Mutant 403 | -10/Materials | Discovered new exit (range 13) 694 | -10/Materials | Discovered new exit (range 16) 775 | -10/Materials | Discovered new exit (range 15) 1257 | -10/Materials | Discovered new exit (range 7) 1848 | -10/Materials | Entered Subcaves 1850 | -10/Subcaves | Learned location of Storage (-8) 1904 | -10/Subcaves | Discovered new exit (range 11) 1913 | -10/Subcaves | A swath of the cavern ceiling suddenly collapsed 1995 | -10/Subcaves | Discovered new exit (range 16) 2220 | -10/Subcaves | Visited 4L-MR0's lab 2229 | -10/Subcaves | Found Rainbow Chip 2231 | -10/Subcaves | Attached Rainbow Chip, gained temporary slots: Power, Propulsion, Utility, Weapon 2235 | -10/Subcaves | Found Prototype Special Melee Weapon 2263 | -10/Subcaves | Entered Recycling 2264 | -8/Recycling | Core integrity fell below 50% 2289 | -8/Recycling | Core integrity fell below 20% 2302 | -8/Recycling | Destroyed by Y-45 Defender with Heavy Assault Rifle Last Messages --------------- 02283_ Imp. Assault Rifle destroyed. 02283_ Y-45 Defender destroyed. 02284_ Critical hit (Burn: +37). 02285_ D-53 Grenadier destroyed. 02287_ The unstable cave ceiling collapses. 02288_ Acquired Cmb. Airjet. 02290_ Acquired 28 matter. 02291_ Acquired Lgt. Treads. 02293_ Acquired 10 matter. 02294_ U-05 Engineer lays Concrete. 02294_ Critical hit (Burn: +37). 02295_ U-05 Engineer lays Concrete. 02296_ Acquired Lgt. Treads. 02297_ U-05 Engineer lays Concrete. 02300_ The unstable cave ceiling collapses. 02300_ U-05 Engineer lays Concrete. 02300_ Y-45 Defender IFF system glitched. 02300_ R-06 Scavenger destroyed. 02301_ U-05 Engineer lays Concrete. 02301_ R-06 Scavenger collects Imp. Ion Engine. Map ----- +----------------------------------------------------+ | ??????????????????????????????????? | | ??????????????????????????????????? | | ??????????????????????????????????? | | ??????????????????????????????????? | | ??????????????????????????????????? | | ??????????????????????????????????? | | ??????????????????????????????????? | | ??????????????????????????????????? | | ??????????????????????????????????? | | ??????????????????????????????????? | | ??????????????????????????????????? | | ??????????????????????????????????? | | ??????????????????????????????????? | | ??????????????????????????????????? | | ??????????????????????????????????? | | ??????????????????????????????????? | | ??????????????????????????????????? | | ??????????????????????????????????? | | ??????????????????????????????????? | | ??????????????????????????????????? | | ?????#+???????????#???????????????? | | ?????# ?????##?? #???????????????? | | ????## ##### ## #???????????????? | | ???## r #####???????????? | | ??## Y +???????????? | | ??# u%@ Y #???????????????? | | ???# !Y *###+#####???????????????? | | ???# # #???????????????????????? | | ??# ??????????????????? | | ??## # #?????????????? | | ???# ] !#?????????????? | | ???## ### #?????????????? | | ????# #?? #?????????????? | | ????# #?? = #?????????????? | | ????# ###? ]! ! #?????????????? | | ????# ""#?#########?????????????? | | ????# Y"#???????????????????????? | | ????# ""#???????????????????????? | | ????# ###???????????????????????? | | ????# #?????????????????????????? | | ????# #?????????????????????????? | | ????# #?????????????????????????? | | ????# #??#######????????????????? | | ????# #? ! #????????????????? | | ????# #? #????????????????? | | ????# # ! #????????????????? | | ????# #! ! ! #????????????????? | | ????# +! #????????????????? | | ????# #! !#????????????????? | | ????# # #????????????????? | +----------------------------------------------------+ Best States ------------- Heat Dissipation 25 Energy Generation 12 Energy Capacity 265 Matter Stores 300 Matter Capacity 300 Sight Range 16 Terrain Scan Range 16 Terrain Scan Density 10 Evasion (%) 62 Recoil Reduction 2 Offensive Hacking 10 Item Schematics ----------------- Lrg. Storage Unit | -10/Materials | Hacked Robot Schematics ------------------ None Fabricated ------------ Nothing Repaired ---------- Nothing Studied --------- None Alien Tech Used ----------------- None Achievements -------------- None Challenges ------------ None Game ------ Seed PhysicsArmorNanoactuators Manual? 0 Play Time 00:14:24 Cumulative 120.4 hours Start 2026.04.03 @ 16:16:39 End 2026.04.03 @ 16:31:37 Sessions 1 Manual Loads 0 Difficulty Rogue Special Mode None Game No. 179 Rogue 179 Adventurer 0 Explorer 0 Win Type - Total 1 Types 1/0/0/0/0/0/0/0/0/0 Lore% 50 Gallery% 52 Achievement% 39 Wizard Run 0 Options --------- Layout 1 ASCII 0 Keyboard 1 Movement Arrows Keybinds 0 Fullscreen 1 Font 24/Smallcaps Map View 50x35 Zoom Use 0% Tactical HUD 1 Map Filters NONE Filters NONE Steam 1 RUN: 43625316-211e-40f9-a303-28ed355bcdd0